[Event "Titled Tuesday Blitz August 23 Early 2022"]
[White "Kotepalli, Sai Nirupama"]
[Black "Piesik, Piotr"]
[WhiteFideId "5039444"]
[BlackFideId "1136194"]
[WhiteElo "2482"]
[BlackElo "2221"]
[Result "1/2-1/2"]
[Round "07"]
[TimeControl "180+1"]
[Date "2022.08.23"]
[WhiteClock "0:01:02"]
[BlackClock "0:01:25"]

1. e4 {[%clk 0:02:59]}  g6 {[%clk 0:02:58]} 2. d3 {[%clk 0:02:59]}  Bg7 {[%clk 0:02:58]} 3. Nf3 {[%clk 0:02:59]}  c5 {[%clk 0:02:58]} 4. g3 {[%clk 0:02:59]}  Nc6 {[%clk 0:02:58]} 5. Bg2 {[%clk 0:02:59]}  e6 {[%clk 0:02:59]} 6. O-O {[%clk 0:03:00]}  Nge7 {[%clk 0:02:59]} 7. c3 {[%clk 0:03:00]}  O-O {[%clk 0:02:59]} 8. Nh4 {[%clk 0:02:57]}  Rb8 {[%clk 0:02:54]} 9. Be3 {[%clk 0:02:55]}  d6 {[%clk 0:02:53]} 10. f4 {[%clk 0:02:55]}  b5 {[%clk 0:02:52]} 11. a3 {[%clk 0:02:55]}  a5 {[%clk 0:02:50]} 12. Nf3 {[%clk 0:02:47]}  b4 {[%clk 0:02:50]} 13. axb4 {[%clk 0:02:47]}  axb4 {[%clk 0:02:51]} 14. d4 {[%clk 0:02:47]}  bxc3 {[%clk 0:02:50]} 15. bxc3 {[%clk 0:02:48]}  cxd4 {[%clk 0:02:49]} 16. Nxd4 {[%clk 0:02:45]}  Nxd4 {[%clk 0:02:46]} 17. Bxd4 {[%clk 0:02:44]}  Bxd4+ {[%clk 0:02:39]} 18. Qxd4 {[%clk 0:02:33]}  Nc6 {[%clk 0:02:38]} 19. Qd3 {[%clk 0:02:28]}  Bb7 {[%clk 0:02:34]} 20. Rd1 {[%clk 0:02:26]}  Qb6+ {[%clk 0:02:32]} 21. Kh1 {[%clk 0:02:24]}  Rfd8 {[%clk 0:02:32]} 22. Nd2 {[%clk 0:02:19]}  Na5 {[%clk 0:02:18]} 23. Nc4 {[%clk 0:02:06]}  Nxc4 {[%clk 0:02:17]} 24. Qxc4 {[%clk 0:02:06]}  d5 {[%clk 0:02:05]} 25. exd5 {[%clk 0:02:02]}  exd5 {[%clk 0:02:00]} 26. Qd4 {[%clk 0:02:00]}  Qxd4 {[%clk 0:01:49]} 27. Rxd4 {[%clk 0:02:00]}  Rbc8 {[%clk 0:01:49]} 28. Ra3 {[%clk 0:01:47]}  Re8 {[%clk 0:01:47]} 29. Kg1 {[%clk 0:01:39]}  Re1+ {[%clk 0:01:40]} 30. Kf2 {[%clk 0:01:39]}  Rc1 {[%clk 0:01:40]} 31. Bxd5 {[%clk 0:01:37]}  Bxd5 {[%clk 0:01:39]} 32. Rxd5 {[%clk 0:01:37]}  Rc2+ {[%clk 0:01:38]} 33. Ke3 {[%clk 0:01:29]}  R8xc3+ {[%clk 0:01:35]} 34. Rxc3 {[%clk 0:01:25]}  Rxc3+ {[%clk 0:01:36]} 35. Ke4 {[%clk 0:01:20]}  Rc2 {[%clk 0:01:34]} 36. h4 {[%clk 0:01:19]}  h5 {[%clk 0:01:34]} 37. f5 {[%clk 0:01:13]}  Rc4+ {[%clk 0:01:25]} 38. Kf3 {[%clk 0:01:12]}  Kg7 {[%clk 0:01:24]} 39. fxg6 {[%clk 0:01:11]}  fxg6 {[%clk 0:01:25]} 40. Rd7+ {[%clk 0:01:10]}  Kf6 {[%clk 0:01:25]} 41. Rd6+ {[%clk 0:01:10]}  Kf5 {[%clk 0:01:25]} 42. Rd5+ {[%clk 0:01:08]}  Ke6 {[%clk 0:01:25]} 43. Rg5 {[%clk 0:01:02]}  Kf6 {[%clk 0:01:24]} 44. Ra5 {[%clk 0:01:02]}  Rc3+ {[%clk 0:01:23]} 45. Kf4 {[%clk 0:01:01]}  Rc4+ {[%clk 0:01:24]} 46. Kf3 {[%clk 0:01:01]}  Rc3+ {[%clk 0:01:24]} 47. Kf4 {[%clk 0:01:02]}  Rc4+ {[%clk 0:01:25]} 48. Kf3 {[%clk 0:01:02]} 1/2-1/2


[Site "https://www.chess.com"]

[Event "Titled Tuesday Blitz August 23 Early 2022"]
[White "Krsnik Cohar, Ivan Vihor"]
[Black "Malicka, Maria"]
[WhiteFideId "14520044"]
[BlackFideId "1197576"]
[WhiteElo "2414"]
[BlackElo "1931"]
[Result "0-1"]
[Round "07"]
[TimeControl "180+1"]
[Date "2022.08.23"]
[WhiteClock "0:00:02"]
[BlackClock "0:01:56"]

1. e4 {[%clk 0:02:54]}  c5 {[%clk 0:02:59]} 2. Ne2 {[%clk 0:02:54]}  d6 {[%clk 0:02:59]} 3. g3 {[%clk 0:02:55]}  g6 {[%clk 0:02:59]} 4. Bg2 {[%clk 0:02:55]}  Bg7 {[%clk 0:02:59]} 5. c3 {[%clk 0:02:56]}  Nf6 {[%clk 0:02:57]} 6. d4 {[%clk 0:02:56]}  O-O {[%clk 0:02:57]} 7. h3 {[%clk 0:02:55]}  cxd4 {[%clk 0:02:56]} 8. cxd4 {[%clk 0:02:56]}  d5 {[%clk 0:02:56]} 9. e5 {[%clk 0:02:56]}  Ne4 {[%clk 0:02:57]} 10. f3 {[%clk 0:02:56]}  Qa5+ {[%clk 0:02:53]} 11. Kf1 {[%clk 0:02:56]}  f6 {[%clk 0:02:53]} 12. fxe4 {[%clk 0:02:49]}  fxe5+ {[%clk 0:02:53]} 13. Kg1 {[%clk 0:02:47]}  exd4 {[%clk 0:02:54]} 14. exd5 {[%clk 0:02:18]}  Bf5 {[%clk 0:02:49]} 15. Bd2 {[%clk 0:02:03]}  Qb6 {[%clk 0:02:48]} 16. Qb3 {[%clk 0:02:02]}  Qa6 {[%clk 0:02:41]} 17. Nf4 {[%clk 0:01:23]}  Kh8 {[%clk 0:02:36]} 18. d6 {[%clk 0:01:09]}  e5 {[%clk 0:02:35]} 19. Ne6 {[%clk 0:00:57]}  Bxe6 {[%clk 0:02:31]} 20. Qxe6 {[%clk 0:00:57]}  Nc6 {[%clk 0:02:32]} 21. d7 {[%clk 0:00:40]}  Qe2 {[%clk 0:02:24]} 22. Qg4 {[%clk 0:00:34]}  Qf2+ {[%clk 0:02:21]} 23. Kh2 {[%clk 0:00:33]}  Qf6 {[%clk 0:02:14]} 24. Bg5 {[%clk 0:00:28]}  Qd6 {[%clk 0:02:12]} 25. Nd2 {[%clk 0:00:28]}  Rf5 {[%clk 0:02:04]} 26. Rhf1 {[%clk 0:00:21]}  Raf8 {[%clk 0:02:03]} 27. Rxf5 {[%clk 0:00:12]}  gxf5 {[%clk 0:02:02]} 28. Qf3 {[%clk 0:00:05]}  e4 {[%clk 0:02:01]} 29. Nxe4 {[%clk 0:00:02]}  fxe4 {[%clk 0:02:01]} 30. Qg4 {[%clk 0:00:03]}  e3 {[%clk 0:01:57]} 31. Rg1 {[%clk 0:00:01]}  Ne5 {[%clk 0:01:56]} 32. h4 {[%clk 0:00:02]}  Nxg4+ {[%clk 0:01:56]} 0-1


[Site "https://www.chess.com"]

[Event "Titled Tuesday Blitz August 23 Early 2022"]
[White "Lewtak, Damian"]
[Black "Santos Ruiz, Miguel"]
[WhiteFideId "1141724"]
[BlackFideId "22291482"]
[WhiteElo "2329"]
[BlackElo "2478"]
[Result "0-1"]
[Round "07"]
[TimeControl "180+1"]
[Date "2022.08.23"]
[WhiteClock "0:00:01"]
[BlackClock "0:00:15"]

1. h4 {[%clk 0:03:00]}  a5 {[%clk 0:02:57]} 2. h5 {[%clk 0:03:01]}  a4 {[%clk 0:02:57]} 3. h6 {[%clk 0:03:00]}  Nxh6 {[%clk 0:02:56]} 4. Rxh6 {[%clk 0:02:55]}  gxh6 {[%clk 0:02:57]} 5. e4 {[%clk 0:02:55]}  d5 {[%clk 0:02:55]} 6. Nc3 {[%clk 0:02:54]}  dxe4 {[%clk 0:02:55]} 7. Qh5 {[%clk 0:02:51]}  Qd6 {[%clk 0:02:43]} 8. Nb5 {[%clk 0:02:42]}  Qd7 {[%clk 0:02:07]} 9. Bc4 {[%clk 0:02:21]}  Kd8 {[%clk 0:01:47]} 10. d3 {[%clk 0:01:54]}  c6 {[%clk 0:01:26]} 11. Nc3 {[%clk 0:01:39]}  Qf5 {[%clk 0:00:59]} 12. Qh2 {[%clk 0:01:31]}  Bg7 {[%clk 0:00:51]} 13. Be3 {[%clk 0:01:09]}  Nd7 {[%clk 0:00:41]} 14. O-O-O {[%clk 0:01:03]}  a3 {[%clk 0:00:35]} 15. dxe4 {[%clk 0:00:42]}  axb2+ {[%clk 0:00:35]} 16. Kb1 {[%clk 0:00:42]}  Qe5 {[%clk 0:00:30]} 17. Bxf7 {[%clk 0:00:21]}  Qxh2 {[%clk 0:00:25]} 18. Nf3 {[%clk 0:00:19]}  Qc7 {[%clk 0:00:24]} 19. e5 {[%clk 0:00:17]}  Ra5 {[%clk 0:00:19]} 20. Nd4 {[%clk 0:00:15]}  Rxe5 {[%clk 0:00:17]} 21. Bf4 {[%clk 0:00:15]}  Qd6 {[%clk 0:00:16]} 22. Bg3 {[%clk 0:00:02]}  Qxd4 {[%clk 0:00:15]} 23. Rxd4 {[%clk 0:00:01]}  Re1+ {[%clk 0:00:15]} 24. Rd1 {[%clk 0:00:01]}  Bxc3 {[%clk 0:00:15]} 0-1


[Site "https://www.chess.com"]

[Event "Titled Tuesday Blitz August 23 Early 2022"]
[White "Mekhitarian, Krikor Sevag"]
[Black "Starozhilov, Leonid"]
[WhiteFideId "2107660"]
[BlackFideId "14106752"]
[WhiteElo "2603"]
[BlackElo "2414"]
[Result "1-0"]
[Round "07"]
[TimeControl "180+1"]
[Date "2022.08.23"]
[WhiteClock "0:00:28"]
[BlackClock "0:00:02"]

1. e4 {[%clk 0:03:00]}  g6 {[%clk 0:02:58]} 2. d4 {[%clk 0:03:00]}  Bg7 {[%clk 0:02:59]} 3. Nc3 {[%clk 0:03:01]}  d6 {[%clk 0:02:59]} 4. h4 {[%clk 0:02:59]}  Nf6 {[%clk 0:02:59]} 5. f3 {[%clk 0:02:57]}  Nc6 {[%clk 0:02:56]} 6. Be3 {[%clk 0:02:57]}  a6 {[%clk 0:02:53]} 7. Nge2 {[%clk 0:02:56]}  h5 {[%clk 0:02:53]} 8. Qd2 {[%clk 0:02:55]}  b5 {[%clk 0:02:53]} 9. d5 {[%clk 0:02:47]}  Ne5 {[%clk 0:02:53]} 10. Nd4 {[%clk 0:02:47]}  Bb7 {[%clk 0:02:53]} 11. a4 {[%clk 0:02:45]}  bxa4 {[%clk 0:02:43]} 12. Be2 {[%clk 0:02:43]}  O-O {[%clk 0:02:42]} 13. O-O {[%clk 0:02:43]}  c6 {[%clk 0:02:38]} 14. dxc6 {[%clk 0:02:40]}  Nxc6 {[%clk 0:02:38]} 15. Rxa4 {[%clk 0:02:41]}  a5 {[%clk 0:02:32]} 16. Rfa1 {[%clk 0:02:39]}  Nd7 {[%clk 0:02:31]} 17. Bb5 {[%clk 0:02:30]}  Nce5 {[%clk 0:02:18]} 18. Nd5 {[%clk 0:02:14]}  Bxd5 {[%clk 0:02:15]} 19. exd5 {[%clk 0:02:14]}  Nb6 {[%clk 0:02:15]} 20. Rxa5 {[%clk 0:02:09]}  Rxa5 {[%clk 0:02:01]} 21. Qxa5 {[%clk 0:02:09]}  Nec4 {[%clk 0:01:18]} 22. Bxc4 {[%clk 0:02:09]}  Nxc4 {[%clk 0:01:19]} 23. Qxd8 {[%clk 0:02:09]}  Rxd8 {[%clk 0:01:19]} 24. Bf2 {[%clk 0:01:53]}  Nxb2 {[%clk 0:01:19]} 25. Nc6 {[%clk 0:01:45]}  Rd7 {[%clk 0:00:55]} 26. Ra8+ {[%clk 0:01:39]}  Bf8 {[%clk 0:00:31]} 27. Bd4 {[%clk 0:01:31]}  Nc4 {[%clk 0:00:30]} 28. Ra4 {[%clk 0:01:29]}  Ne5 {[%clk 0:00:25]} 29. Bxe5 {[%clk 0:01:29]}  dxe5 {[%clk 0:00:25]} 30. c4 {[%clk 0:01:30]}  e6 {[%clk 0:00:22]} 31. Nxe5 {[%clk 0:01:23]}  Bc5+ {[%clk 0:00:20]} 32. Kf1 {[%clk 0:01:22]}  Rd6 {[%clk 0:00:20]} 33. Ra8+ {[%clk 0:01:12]}  Kg7 {[%clk 0:00:20]} 34. Rc8 {[%clk 0:01:13]}  Bd4 {[%clk 0:00:17]} 35. Nc6 {[%clk 0:01:13]}  Bf6 {[%clk 0:00:15]} 36. Nb4 {[%clk 0:01:01]}  exd5 {[%clk 0:00:11]} 37. Nxd5 {[%clk 0:00:58]}  Bxh4 {[%clk 0:00:11]} 38. Ke2 {[%clk 0:00:49]}  Bg3 {[%clk 0:00:09]} 39. Kd3 {[%clk 0:00:49]}  g5 {[%clk 0:00:08]} 40. Ke4 {[%clk 0:00:43]}  g4 {[%clk 0:00:05]} 41. fxg4 {[%clk 0:00:42]}  hxg4 {[%clk 0:00:06]} 42. Kf5 {[%clk 0:00:42]}  Rg6 {[%clk 0:00:06]} 43. Ne3 {[%clk 0:00:32]}  Rf6+ {[%clk 0:00:04]} 44. Kxg4 {[%clk 0:00:33]}  Bf2 {[%clk 0:00:04]} 45. Nf5+ {[%clk 0:00:30]}  Kg6 {[%clk 0:00:04]} 46. Rg8+ {[%clk 0:00:30]}  Kh7 {[%clk 0:00:04]} 47. Rg5 {[%clk 0:00:29]}  Rc6 {[%clk 0:00:02]} 48. Rh5+ {[%clk 0:00:28]} 1-0


[Site "https://www.chess.com"]

[Event "Titled Tuesday Blitz August 23 Early 2022"]
[White "Nazaretyan, Tigran"]
[Black "Mindlin, Alon"]
[WhiteFideId "24162345"]
[BlackFideId "2800071"]
[WhiteElo "2183"]
[BlackElo "2417"]
[Result "0-1"]
[Round "07"]
[TimeControl "180+1"]
[Date "2022.08.23"]
[WhiteClock "0:00:21"]
[BlackClock "0:00:20"]

1. d4 {[%clk 0:02:54]}  d5 {[%clk 0:02:57]} 2. c4 {[%clk 0:02:54]}  e6 {[%clk 0:02:57]} 3. Nf3 {[%clk 0:02:54]}  Nf6 {[%clk 0:02:57]} 4. Nc3 {[%clk 0:02:54]}  Be7 {[%clk 0:02:57]} 5. Bf4 {[%clk 0:02:53]}  O-O {[%clk 0:02:56]} 6. e3 {[%clk 0:02:53]}  b6 {[%clk 0:02:57]} 7. Bd3 {[%clk 0:02:52]}  c5 {[%clk 0:02:55]} 8. cxd5 {[%clk 0:02:45]}  Nxd5 {[%clk 0:02:50]} 9. Nxd5 {[%clk 0:02:43]}  exd5 {[%clk 0:02:51]} 10. Rc1 {[%clk 0:02:43]}  Be6 {[%clk 0:02:50]} 11. O-O {[%clk 0:02:41]}  Nd7 {[%clk 0:02:46]} 12. b3 {[%clk 0:02:38]}  h6 {[%clk 0:02:23]} 13. Bb1 {[%clk 0:02:36]}  Rc8 {[%clk 0:02:21]} 14. Qd3 {[%clk 0:02:32]}  f5 {[%clk 0:02:19]} 15. Rfd1 {[%clk 0:02:24]}  c4 {[%clk 0:02:17]} 16. bxc4 {[%clk 0:02:23]}  dxc4 {[%clk 0:02:17]} 17. Qe2 {[%clk 0:02:13]}  Nf6 {[%clk 0:02:12]} 18. Ne5 {[%clk 0:02:09]}  b5 {[%clk 0:02:11]} 19. a4 {[%clk 0:02:08]}  a6 {[%clk 0:02:10]} 20. axb5 {[%clk 0:02:03]}  axb5 {[%clk 0:02:11]} 21. h3 {[%clk 0:01:55]}  Qe8 {[%clk 0:02:06]} 22. Qf3 {[%clk 0:01:52]}  Bd5 {[%clk 0:02:01]} 23. Qg3 {[%clk 0:01:45]}  Nh5 {[%clk 0:02:01]} 24. Qh2 {[%clk 0:01:43]}  b4 {[%clk 0:01:58]} 25. f3 {[%clk 0:01:25]}  c3 {[%clk 0:01:50]} 26. Bg3 {[%clk 0:01:20]}  b3 {[%clk 0:01:46]} 27. e4 {[%clk 0:01:15]}  fxe4 {[%clk 0:01:37]} 28. fxe4 {[%clk 0:01:14]}  Bb7 {[%clk 0:01:36]} 29. Bd3 {[%clk 0:01:12]}  c2 {[%clk 0:01:26]} 30. Bxc2 {[%clk 0:01:09]}  Rxc2 {[%clk 0:01:24]} 31. Rxc2 {[%clk 0:01:09]}  bxc2 {[%clk 0:01:23]} 32. Rc1 {[%clk 0:01:09]}  Bg5 {[%clk 0:01:22]} 33. Rxc2 {[%clk 0:01:08]}  Be3+ {[%clk 0:01:22]} 34. Bf2 {[%clk 0:01:08]}  Bxe4 {[%clk 0:01:17]} 35. Bxe3 {[%clk 0:01:05]}  Bxc2 {[%clk 0:01:17]} 36. g4 {[%clk 0:01:05]}  Qa4 {[%clk 0:00:54]} 37. gxh5 {[%clk 0:00:58]}  Qa1+ {[%clk 0:00:53]} 38. Kg2 {[%clk 0:00:59]}  Qe1 {[%clk 0:00:45]} 39. Qg1 {[%clk 0:00:52]}  Be4+ {[%clk 0:00:25]} 40. Kh2 {[%clk 0:00:49]}  Qe2+ {[%clk 0:00:25]} 41. Kg3 {[%clk 0:00:48]}  Rf1 {[%clk 0:00:25]} 42. Qxf1 {[%clk 0:00:33]}  Qxf1 {[%clk 0:00:25]} 43. Ng4 {[%clk 0:00:24]}  Qf3+ {[%clk 0:00:24]} 44. Kh4 {[%clk 0:00:24]}  Bf5 {[%clk 0:00:21]} 45. Bg1 {[%clk 0:00:19]}  Bxg4 {[%clk 0:00:20]} 46. hxg4 {[%clk 0:00:19]}  Qh1+ {[%clk 0:00:20]} 47. Kg3 {[%clk 0:00:20]}  Qxg1+ {[%clk 0:00:20]} 48. Kf4 {[%clk 0:00:20]}  Qxd4+ {[%clk 0:00:21]} 49. Kf5 {[%clk 0:00:21]}  Kf7 {[%clk 0:00:20]} 50. g5 {[%clk 0:00:22]}  Qd5+ {[%clk 0:00:20]} 51. Kf4 {[%clk 0:00:21]}  Qxg5+ {[%clk 0:00:20]} 0-1


[Site "https://www.chess.com"]

[Event "Titled Tuesday Blitz August 23 Early 2022"]
[White "Papasimakopoulos, Alexandros"]
[Black "Lenderman, Aleksandr"]
[WhiteFideId "4244125"]
[BlackFideId "2021285"]
[WhiteElo "2357"]
[BlackElo "2607"]
[Result "0-1"]
[Round "07"]
[TimeControl "180+1"]
[Date "2022.08.23"]
[WhiteClock "0:00:19"]
[BlackClock "0:00:34"]

1. d4 {[%clk 0:02:25]}  e6 {[%clk 0:03:00]} 2. c4 {[%clk 0:02:23]}  b6 {[%clk 0:02:58]} 3. e4 {[%clk 0:02:20]}  Bb4+ {[%clk 0:02:51]} 4. Nd2 {[%clk 0:02:12]}  Bb7 {[%clk 0:02:51]} 5. Bd3 {[%clk 0:02:12]}  f5 {[%clk 0:02:46]} 6. Qe2 {[%clk 0:02:08]}  Nf6 {[%clk 0:02:43]} 7. f3 {[%clk 0:01:50]}  O-O {[%clk 0:02:34]} 8. e5 {[%clk 0:01:47]}  Nh5 {[%clk 0:02:31]} 9. g3 {[%clk 0:01:40]}  Nc6 {[%clk 0:02:31]} 10. Qf2 {[%clk 0:01:36]}  d6 {[%clk 0:02:31]} 11. exd6 {[%clk 0:01:32]}  Qxd6 {[%clk 0:02:30]} 12. Ne2 {[%clk 0:01:32]}  Rad8 {[%clk 0:02:17]} 13. a3 {[%clk 0:01:32]}  Bxd2+ {[%clk 0:02:16]} 14. Bxd2 {[%clk 0:01:33]}  Nxd4 {[%clk 0:02:16]} 15. Nxd4 {[%clk 0:01:24]}  Qxd4 {[%clk 0:02:17]} 16. Qxd4 {[%clk 0:01:24]}  Rxd4 {[%clk 0:02:18]} 17. Be2 {[%clk 0:01:25]}  Rfd8 {[%clk 0:02:10]} 18. Bc3 {[%clk 0:01:25]}  R4d7 {[%clk 0:02:10]} 19. Kf2 {[%clk 0:01:21]}  Nf6 {[%clk 0:02:06]} 20. Rhe1 {[%clk 0:01:19]}  Kf7 {[%clk 0:02:05]} 21. Bf1 {[%clk 0:01:15]}  g5 {[%clk 0:02:03]} 22. Re5 {[%clk 0:01:14]}  g4 {[%clk 0:02:00]} 23. Bg2 {[%clk 0:00:56]}  Rd3 {[%clk 0:01:37]} 24. Re3 {[%clk 0:00:52]}  gxf3 {[%clk 0:01:29]} 25. Bxf3 {[%clk 0:00:51]}  Bxf3 {[%clk 0:01:18]} 26. Kxf3 {[%clk 0:00:51]}  Ng4 {[%clk 0:01:16]} 27. Rxd3 {[%clk 0:00:49]}  Rxd3+ {[%clk 0:01:17]} 28. Kg2 {[%clk 0:00:49]}  Ne3+ {[%clk 0:01:15]} 29. Kf2 {[%clk 0:00:49]}  Nxc4 {[%clk 0:01:12]} 30. Ke2 {[%clk 0:00:47]}  Rd5 {[%clk 0:01:06]} 31. Rc1 {[%clk 0:00:45]}  Nd6 {[%clk 0:01:06]} 32. Bd2 {[%clk 0:00:40]}  c5 {[%clk 0:01:06]} 33. b4 {[%clk 0:00:41]}  c4 {[%clk 0:01:04]} 34. a4 {[%clk 0:00:41]}  a6 {[%clk 0:01:05]} 35. Bf4 {[%clk 0:00:37]}  e5 {[%clk 0:01:04]} 36. Be3 {[%clk 0:00:37]}  b5 {[%clk 0:01:03]} 37. axb5 {[%clk 0:00:38]}  axb5 {[%clk 0:01:04]} 38. Ra1 {[%clk 0:00:37]}  Ne4 {[%clk 0:00:33]} 39. Ra7+ {[%clk 0:00:35]}  Ke6 {[%clk 0:00:34]} 40. Ra6+ {[%clk 0:00:36]}  Rd6 {[%clk 0:00:34]} 41. Ra7 {[%clk 0:00:34]}  Rd3 {[%clk 0:00:34]} 42. Rxh7 {[%clk 0:00:28]}  Nc3+ {[%clk 0:00:34]} 43. Kf2 {[%clk 0:00:21]}  Nd1+ {[%clk 0:00:33]} 44. Ke2 {[%clk 0:00:22]}  Nxe3 {[%clk 0:00:34]} 45. Rb7 {[%clk 0:00:21]}  Nd5 {[%clk 0:00:34]} 46. Kf2 {[%clk 0:00:20]}  c3 {[%clk 0:00:33]} 47. Rxb5 {[%clk 0:00:18]}  c2 {[%clk 0:00:34]} 48. Rc5 {[%clk 0:00:19]}  Rc3 {[%clk 0:00:34]} 0-1


[Site "https://www.chess.com"]

[Event "Titled Tuesday Blitz August 23 Early 2022"]
[White "Timofeev, Artyom"]
[Black "Ladopoulos, Dimitrios"]
[WhiteFideId "4140419"]
[BlackFideId "4239580"]
[WhiteElo "2578"]
[BlackElo "2195"]
[Result "1-0"]
[Round "07"]
[TimeControl "180+1"]
[Date "2022.08.23"]
[WhiteClock "0:01:09"]
[BlackClock "0:00:25"]

1. e4 {[%clk 0:03:00]}  e6 {[%clk 0:02:52]} 2. Qe2 {[%clk 0:03:00]}  e5 {[%clk 0:02:48]} 3. Nf3 {[%clk 0:02:59]}  Nc6 {[%clk 0:02:48]} 4. c3 {[%clk 0:02:58]}  Nf6 {[%clk 0:02:48]} 5. d3 {[%clk 0:02:57]}  a5 {[%clk 0:02:43]} 6. a4 {[%clk 0:02:56]}  Bc5 {[%clk 0:02:43]} 7. Bg5 {[%clk 0:02:54]}  h6 {[%clk 0:02:39]} 8. Bh4 {[%clk 0:02:53]}  g5 {[%clk 0:02:36]} 9. Bg3 {[%clk 0:02:53]}  d6 {[%clk 0:02:35]} 10. Nbd2 {[%clk 0:02:44]}  Be6 {[%clk 0:02:32]} 11. Qd1 {[%clk 0:02:42]}  Bb6 {[%clk 0:02:15]} 12. Be2 {[%clk 0:02:41]}  Ne7 {[%clk 0:02:15]} 13. d4 {[%clk 0:02:39]}  exd4 {[%clk 0:02:03]} 14. Nxd4 {[%clk 0:02:37]}  Bxd4 {[%clk 0:01:56]} 15. cxd4 {[%clk 0:02:37]}  d5 {[%clk 0:01:57]} 16. h4 {[%clk 0:02:21]}  gxh4 {[%clk 0:01:50]} 17. Bxh4 {[%clk 0:02:12]}  Ng6 {[%clk 0:01:50]} 18. exd5 {[%clk 0:01:57]}  Nxh4 {[%clk 0:01:28]} 19. dxe6 {[%clk 0:01:53]}  Nxg2+ {[%clk 0:01:28]} 20. Kf1 {[%clk 0:01:53]}  Nf4 {[%clk 0:01:28]} 21. exf7+ {[%clk 0:01:51]}  Kf8 {[%clk 0:01:22]} 22. Nf3 {[%clk 0:01:45]}  Qd5 {[%clk 0:01:17]} 23. Rc1 {[%clk 0:01:44]}  Qxf7 {[%clk 0:01:00]} 24. Ne5 {[%clk 0:01:43]}  Qd5 {[%clk 0:00:53]} 25. Bf3 {[%clk 0:01:43]}  Qd6 {[%clk 0:00:52]} 26. Qd2 {[%clk 0:01:40]}  Ne6 {[%clk 0:00:42]} 27. Ng6+ {[%clk 0:01:37]}  Kf7 {[%clk 0:00:42]} 28. Nxh8+ {[%clk 0:01:37]}  Rxh8 {[%clk 0:00:43]} 29. Rxh6 {[%clk 0:01:32]}  Rxh6 {[%clk 0:00:39]} 30. Qxh6 {[%clk 0:01:32]}  Qxd4 {[%clk 0:00:40]} 31. Bh5+ {[%clk 0:01:11]}  Ke7 {[%clk 0:00:40]} 32. Re1 {[%clk 0:01:10]}  Qh4 {[%clk 0:00:25]} 33. Rxe6+ {[%clk 0:01:09]} 1-0


[Site "https://www.chess.com"]

[Event "Titled Tuesday Blitz August 23 Early 2022"]
[White "Vakhlamov, Igor L."]
[Black "Tristan, Leonardo"]
[WhiteFideId "24126748"]
[BlackFideId "113816"]
[WhiteElo "2401"]
[BlackElo "2404"]
[Result "1-0"]
[Round "07"]
[TimeControl "180+1"]
[Date "2022.08.23"]
[WhiteClock "0:00:06"]
[BlackClock "0:00:04"]

1. e4 {[%clk 0:03:00]}  d5 {[%clk 0:03:00]} 2. exd5 {[%clk 0:02:59]}  Qxd5 {[%clk 0:03:01]} 3. Nc3 {[%clk 0:02:59]}  Qa5 {[%clk 0:03:01]} 4. d4 {[%clk 0:03:00]}  Nf6 {[%clk 0:03:01]} 5. Nf3 {[%clk 0:03:00]}  Bf5 {[%clk 0:03:02]} 6. Bc4 {[%clk 0:02:56]}  e6 {[%clk 0:03:02]} 7. O-O {[%clk 0:02:52]}  Bb4 {[%clk 0:03:01]} 8. Ne2 {[%clk 0:02:53]}  O-O {[%clk 0:02:57]} 9. Ng3 {[%clk 0:02:51]}  Bg6 {[%clk 0:02:57]} 10. Ne5 {[%clk 0:02:45]}  Nc6 {[%clk 0:02:56]} 11. c3 {[%clk 0:02:34]}  Be7 {[%clk 0:02:53]} 12. Nxc6 {[%clk 0:02:30]}  bxc6 {[%clk 0:02:53]} 13. b4 {[%clk 0:02:28]}  Qb6 {[%clk 0:02:54]} 14. Bd2 {[%clk 0:02:18]}  a5 {[%clk 0:02:53]} 15. a3 {[%clk 0:02:18]}  Rfd8 {[%clk 0:02:43]} 16. Qe2 {[%clk 0:02:14]}  h5 {[%clk 0:02:11]} 17. Rfe1 {[%clk 0:01:57]}  h4 {[%clk 0:02:09]} 18. Nf1 {[%clk 0:01:56]}  h3 {[%clk 0:02:09]} 19. gxh3 {[%clk 0:01:48]}  Nd5 {[%clk 0:01:44]} 20. Ng3 {[%clk 0:01:44]}  Bd6 {[%clk 0:01:40]} 21. Qg4 {[%clk 0:01:41]}  Nf6 {[%clk 0:01:29]} 22. Qf3 {[%clk 0:01:41]}  Nd5 {[%clk 0:01:25]} 23. h4 {[%clk 0:01:41]}  a4 {[%clk 0:01:17]} 24. h5 {[%clk 0:01:40]}  Bc2 {[%clk 0:01:17]} 25. h6 {[%clk 0:01:39]}  Bb3 {[%clk 0:01:13]} 26. Bd3 {[%clk 0:01:35]}  Ne7 {[%clk 0:01:00]} 27. hxg7 {[%clk 0:01:27]}  f5 {[%clk 0:01:01]} 28. Qh5 {[%clk 0:01:22]}  Kxg7 {[%clk 0:00:34]} 29. Bh6+ {[%clk 0:01:13]}  Kg8 {[%clk 0:00:34]} 30. Qg5+ {[%clk 0:01:04]}  Kf7 {[%clk 0:00:34]} 31. Qg7+ {[%clk 0:00:46]}  Ke8 {[%clk 0:00:35]} 32. Bxf5 {[%clk 0:00:40]}  exf5 {[%clk 0:00:26]} 33. Nxf5 {[%clk 0:00:39]}  Kd7 {[%clk 0:00:26]} 34. Nxe7 {[%clk 0:00:29]}  Bxe7 {[%clk 0:00:25]} 35. Rxe7+ {[%clk 0:00:29]}  Kc8 {[%clk 0:00:26]} 36. Qe5 {[%clk 0:00:10]}  Kb7 {[%clk 0:00:19]} 37. h4 {[%clk 0:00:10]}  Rd5 {[%clk 0:00:13]} 38. Qf4 {[%clk 0:00:08]}  Bc2 {[%clk 0:00:09]} 39. Rae1 {[%clk 0:00:08]}  Rf5 {[%clk 0:00:10]} 40. Qg3 {[%clk 0:00:07]}  Bb3 {[%clk 0:00:10]} 41. Bf4 {[%clk 0:00:07]}  Rg8 {[%clk 0:00:10]} 42. Bg5 {[%clk 0:00:07]}  Rgf8 {[%clk 0:00:09]} 43. f4 {[%clk 0:00:05]}  Qb5 {[%clk 0:00:09]} 44. R1e5 {[%clk 0:00:05]}  Qc4 {[%clk 0:00:08]} 45. Rxf5 {[%clk 0:00:05]}  Rxf5 {[%clk 0:00:08]} 46. Qe3 {[%clk 0:00:05]}  Bc2 {[%clk 0:00:07]} 47. h5 {[%clk 0:00:06]}  Qa2 {[%clk 0:00:07]} 48. h6 {[%clk 0:00:06]}  Qb1+ {[%clk 0:00:08]} 49. Qe1 {[%clk 0:00:05]}  Qb3 {[%clk 0:00:03]} 50. h7 {[%clk 0:00:05]}  Rf8 {[%clk 0:00:04]} 51. Qe5 {[%clk 0:00:06]}  Qb1+ {[%clk 0:00:03]} 52. Kh2 {[%clk 0:00:06]}  Be4 {[%clk 0:00:03]} 53. Qxc7+ {[%clk 0:00:06]}  Ka6 {[%clk 0:00:04]} 54. Qa5# {[%clk 0:00:06]} 1-0


[Site "https://www.chess.com"]